bitfinex/quotes_BTCUSD_20250119
["timestamp","ask_amount","ask_price","bid_price","bid_amount"]
[1737276898127,0.02117267,104470.0,104460.0,0.21054897]
[1737276898486,0.02117267,104470.0,104460.0,0.36054897]
[1737276898691,0.02012116,104470.0,104460.0,0.36054897]
[1737276898872,0.02117267,104470.0,104460.0,0.36054897]
[1737276899277,0.02007458,104470.0,104460.0,0.36054897]
[1737276900366,0.02112609,104470.0,104460.0,0.36054897]
[1737276900658,0.02007458,104470.0,104460.0,0.36054897]
[1737276900979,0.25052609,104470.0,104460.0,0.36054897]
[1737276901315,0.24947458,104470.0,104460.0,0.36054897]
[1737276901751,0.27247458,104470.0,104460.0,0.26130816]
[1737276902646,0.32137458,104470.0,104460.0,0.26130816]
[1737276902850,0.27137458,104470.0,104460.0,0.11130816]
[1737276903659,0.27137458,104470.0,104460.0,0.1186655]
[1737276904399,0.27137458,104470.0,104460.0,0.0229355]
[1737276904538,0.42137458,104470.0,104460.0,0.1186655]
[1737276905268,0.43082527,104470.0,104460.0,0.1186655]
[1737276905463,0.28082527,104470.0,104460.0,0.1186655]
[1737276905888,0.43082527,104470.0,104460.0,0.1186655]
[1737276906244,0.28082527,104470.0,104460.0,0.1186655]
[1737276907405,0.28082527,104470.0,104460.0,0.0229355]
[1737276907631,0.28082527,104470.0,104460.0,0.1186655]
[1737276909180,0.28082527,104470.0,104460.0,0.0229355]
[1737276909523,0.28082527,104470.0,104460.0,0.1186655]
[1737276910007,0.28082527,104470.0,104460.0,0.0229355]
[1737276910968,0.28082527,104470.0,104460.0,0.01557816]
[1737276911584,0.28082527,104470.0,104460.0,0.01647612]
[1737276913428,0.43082527,104470.0,104460.0,0.01647612]
[1737276913658,0.43082527,104470.0,104460.0,0.11220612]
[1737276914190,0.43082527,104470.0,104460.0,0.01647612]
[1737276915218,0.43082527,104470.0,104460.0,0.00089796]
[1737276916231,0.43082527,104470.0,104460.0,0.01646716]
[1737276916706,0.52654627,104470.0,104460.0,0.01646716]
[1737276917457,0.273,104460.0,104450.0,0.2004277]
[1737276917681,0.49227081,104460.0,104450.0,0.2004277]
[1737276918673,0.57471357,104460.0,104450.0,0.2004277]
[1737276918873,0.49227081,104460.0,104450.0,0.2004277]
[1737276919100,0.42471357,104460.0,104450.0,0.10350411]
[1737276919549,0.42471357,104460.0,104450.0,0.03646698]
[1737276919750,0.343057,104430.0,104420.0,0.37183207]
[1737276919951,0.52474057,104430.0,104420.0,0.37183207]
[1737276920168,0.52474057,104430.0,104420.0,0.26355959]
[1737276920552,0.42474057,104430.0,104420.0,0.26355959]
[1737276920795,0.42474057,104430.0,104420.0,0.00015023]
[1737276923306,0.43451994,104430.0,104420.0,0.00015023]
[1737276924155,0.43451994,104430.0,104420.0,0.00057813]
[1737276924491,0.45401049,104430.0,104420.0,0.00057813]
[1737276933047,0.45401049,104430.0,104390.0,0.00641954]
[1737276933048,0.10544276,104400.0,104390.0,0.00641954]
[1737276933248,0.10544276,104400.0,104390.0,0.00692062]
[1737276933249,0.20227927,104400.0,104390.0,0.00692062]
[1737276933459,0.02405151,104400.0,104390.0,0.00092898]
[1737276933668,0.023,104400.0,104390.0,0.00092898]
[1737276934279,0.02405151,104400.0,104390.0,0.00092898]
[1737276937199,0.04194684,104400.0,104390.0,0.00092898]
[1737276938163,0.04299835,104400.0,104390.0,0.00092898]
[1737276938938,0.04194684,104400.0,104390.0,0.00092898]
[1737276939150,0.04299835,104400.0,104390.0,0.00092898]
[1737276939338,0.04194684,104400.0,104390.0,0.00092898]
[1737276939524,0.04299835,104400.0,104390.0,0.00092898]
[1737276939727,0.04194684,104400.0,104390.0,0.00092898]
[1737276939933,0.01894684,104400.0,104390.0,0.09672298]
[1737276940612,0.01894684,104400.0,104390.0,0.32916574]
[1737276940826,0.48057982,104430.0,104400.0,0.287346]
[1737276941235,0.023,104420.0,104400.0,0.287346]
[1737276941442,0.023,104420.0,104400.0,0.29333764]
[1737276941676,0.118769,104420.0,104400.0,0.15599164]
[1737276941883,0.01959886,104410.0,104400.0,0.15599164]
[1737276942084,0.02065037,104410.0,104400.0,0.15599164]
[1737276942260,0.11642637,104410.0,104400.0,0.00599164]
[1737276942468,0.21522637,104410.0,104400.0,0.00599164]
[1737276942759,0.21417486,104410.0,104400.0,0.00599164]
[1737276942972,0.64585843,104410.0,104400.0,0.00599164]
[1737276943144,0.69465843,104410.0,104400.0,0.00599164]
[1737276944149,0.118785,104400.0,104390.0,0.00092898]
[1737276944635,0.11983651,104400.0,104390.0,0.00092898]
[1737276944835,0.20227927,104400.0,104390.0,0.00092898]
[1737276945039,0.30227927,104400.0,104390.0,0.00092898]
[1737276945238,0.30122776,104400.0,104390.0,0.00092898]
[1737276945644,0.27822776,104400.0,104390.0,0.00092898]
[1737276945934,0.55046857,104400.0,104390.0,0.00092898]
[1737276946116,0.095794,104390.0,104380.0,0.15342427]
[1737276946322,0.09684551,104390.0,104380.0,0.15357457]
[1737276946450,0.09684551,104390.0,104380.0,0.00357457]
[1737276946651,0.09684551,104390.0,104380.0,0.00956782]
[1737276947618,0.09684551,104390.0,104380.0,0.00657155]
[1737276949392,0.095794,104390.0,104380.0,0.00657155]
[1737276950085,0.095794,104390.0,104380.0,0.01915704]
[1737276950733,0.195794,104390.0,104380.0,0.01915704]
[1737276950908,0.27928827,104390.0,104380.0,0.01915704]
[1737276951065,0.27823676,104390.0,104380.0,0.01915704]
[1737276951692,0.27823676,104390.0,104380.0,0.00956809]
[1737276952476,0.40047757,104390.0,104380.0,0.00956809]
[1737276953649,0.44927757,104390.0,104380.0,0.00956809]
[1737276953813,0.52507757,104390.0,104380.0,0.00956809]
[1737276954421,0.54408575,104390.0,104380.0,0.00956809]
[1737276955442,0.54370743,104390.0,104380.0,0.00956809]
[1737276956303,0.54370743,104390.0,104380.0,0.00357484]
[1737276956640,0.44370743,104390.0,104380.0,0.00357484]
[1737276956842,0.59370743,104390.0,104380.0,0.00357484]
[1737276957052,0.59370743,104390.0,104380.0,0.0005783]
[1737276957463,0.59347387,104390.0,104380.0,0.0005783]
[1737276959995,0.59437309,104390.0,104380.0,0.0005783]
[1737276960758,0.345812,104370.0,104360.0,0.0104278]
[1737276960955,0.47569557,104370.0,104360.0,0.0104278]
[1737276961179,0.47569557,104370.0,104360.0,1e-08]
[1737276962386,0.47541176,104370.0,104360.0,1e-08]
[1737276963331,0.52251176,104370.0,104360.0,1e-08]
[1737276963503,0.57279557,104370.0,104360.0,1e-08]
[1737276964259,0.57279557,104370.0,104330.0,0.0004279]
[1737276964260,0.27715619,104340.0,104330.0,0.0004279]
[1737276964475,0.36943976,104340.0,104320.0,0.21409824]
[1737276964682,0.09690051,104330.0,104320.0,0.21409824]
[1737276964877,0.09690051,104330.0,104320.0,0.21414831]
[1737276965045,0.09690051,104330.0,104320.0,0.22014472]
[1737276965046,0.49868408,104330.0,104320.0,0.22014472]
[1737276965251,0.42923257,104330.0,104320.0,0.20844025]
[1737276965699,0.42923257,104330.0,104320.0,0.01384181]
[1737276966098,0.42923257,104330.0,104320.0,0.0078454]
[1737276966273,0.446506,104330.0,104320.0,0.0078454]
[1737276966489,0.1046,104330.0,104320.0,0.0078454]
[1737276966706,0.1046,104330.0,104320.0,5.007e-05]
[1737276966707,0.173,104330.0,104320.0,5.007e-05]
[1737276967067,0.63828876,104330.0,104320.0,5.007e-05]
[1737276967282,0.45053257,104330.0,104320.0,5.007e-05]
[1737276967480,0.173,104330.0,104320.0,5.007e-05]
[1737276967908,0.0204834,104330.0,104320.0,5.007e-05]
[1737276968081,0.1163324,104330.0,104320.0,5.007e-05]
[1737276968284,0.10292616,104330.0,104320.0,0.00304847]
[1737276968646,0.19877516,104330.0,104320.0,0.00304847]
[1737276969449,0.10292616,104330.0,104320.0,0.00304847]
[1737276969753,0.0204834,104330.0,104320.0,0.00304847]
[1737276969980,0.1163324,104330.0,104320.0,0.00304847]
[1737276971593,0.1163324,104330.0,104320.0,0.00347677]
[1737276973646,0.1163324,104330.0,104320.0,0.00047837]
[1737276975340,0.1546514,104330.0,104320.0,0.00047837]
[1737276975932,0.0588024,104330.0,104320.0,0.00047837]
[1737276976537,0.1546514,104330.0,104320.0,0.00047837]
[1737276977060,0.1776514,104330.0,104320.0,0.00047837]
[1737276977913,0.26009416,104330.0,104320.0,0.00047837]
[1737276978114,0.33784265,104330.0,104320.0,0.00047837]
[1737276980551,0.25539989,104330.0,104320.0,0.00047837]
[1737276980924,0.17659989,104330.0,104320.0,0.00047837]
[1737276981342,0.1776514,104330.0,104320.0,0.00047837]
[1737276981889,0.35933497,104330.0,104320.0,0.00047837]
[1737276982031,0.45799965,104330.0,104320.0,0.00047837]
[1737276982400,0.58359965,104330.0,104320.0,0.00047837]
[1737276982523,0.63388346,104330.0,104320.0,0.00047837]
[1737276983343,0.63478332,104330.0,104320.0,0.00047837]
[1737276994434,0.63478332,104330.0,104320.0,0.0034772]
[1737276997522,0.63478332,104330.0,104320.0,0.00047837]
[1737276997712,0.44937419,104320.0,104310.0,0.0004279]
[1737276997910,0.63105776,104320.0,104310.0,0.0004279]
[1737276999480,0.63105776,104320.0,104310.0,0.00342703]
[1737277001959,0.63749776,104320.0,104310.0,0.00342703]
[1737277003989,0.64692462,104320.0,104310.0,0.00342703]
[1737277004824,0.64692462,104320.0,104310.0,0.0004279]
[1737277006457,0.85923676,104320.0,104310.0,0.0004279]
[1737277006652,0.770354,104320.0,104310.0,0.0004279]
[1737277006856,0.77843676,104320.0,104310.0,0.0004279]
[1737277007060,0.62199676,104320.0,104310.0,0.0004279]
[1737277007259,0.317597,104320.0,104310.0,0.00342681]
[1737277007494,0.317597,104320.0,104310.0,0.08092681]
[1737277007715,0.10528486,104320.0,104310.0,0.08092681]
[1737277007925,0.10528486,104320.0,104310.0,0.08692417]
[1737277008277,0.12828486,104320.0,104310.0,0.091722]
[1737277009351,0.31101994,104320.0,104310.0,0.02381766]
[1737277009579,0.49098462,104320.0,104310.0,0.02381766]
[1737277009961,0.49098462,104320.0,104310.0,0.01901983]
[1737277010164,0.39126843,104320.0,104310.0,0.01901983]
[1737277010363,0.30996843,104320.0,104310.0,0.01901983]
[1737277010563,0.12828486,104320.0,104310.0,0.01901983]
[1737277010720,0.12828486,104320.0,104310.0,0.00342681]
[1737277011291,0.340597,104320.0,104310.0,0.00342681]
[1737277011492,0.42303976,104320.0,104310.0,0.00342681]
[1737277012521,0.49487585,104320.0,104310.0,0.00342681]
[1737277012894,0.85631861,104320.0,104310.0,0.00342681]
[1737277013107,0.77387585,104320.0,104310.0,0.00342681]
[1737277013312,0.09461809,104320.0,104310.0,0.00342681]
[1737277013521,0.29697036,104320.0,104310.0,0.00342681]
[1737277013727,0.59253431,104320.0,104310.0,0.00342681]
[1737277014694,0.340597,104320.0,104310.0,0.00942441]
[1737277015109,0.70329676,104320.0,104310.0,0.00942441]
[1737277015746,0.70329676,104320.0,104310.0,0.00342681]
[1737277015971,0.87279131,104320.0,104310.0,0.00342681]
[1737277016562,0.51009155,104320.0,104310.0,0.00342681]
[1737277017658,0.51099141,104320.0,104310.0,0.00342681]
[1737277018546,0.34149686,104320.0,104310.0,0.00942412]
[1737277020578,0.22263886,104320.0,104310.0,0.00942412]
[1737277020995,0.24563886,104320.0,104310.0,0.00942412]
[1737277021762,0.11851795,104320.0,104310.0,0.00942412]
[1737277021934,0.11956946,104320.0,104310.0,0.00942412]
[1737277022134,0.11956946,104320.0,104310.0,0.01901953]
[1737277023632,0.24669037,104320.0,104310.0,0.00942412]
[1737277023786,0.24563886,104320.0,104310.0,0.00942412]
[1737277024572,0.22263886,104320.0,104310.0,0.10557593]
[1737277024772,0.22263886,104320.0,104310.0,0.28551674]
[1737277025131,0.22263886,104320.0,104310.0,0.18964874]
[1737277026008,0.22263886,104320.0,104310.0,0.19924354]
[1737277026285,0.01032672,104320.0,104310.0,0.19924354]
[1737277026469,0.01032672,104320.0,104310.0,0.20404098]
[1737277026972,0.01032672,104320.0,104310.0,0.29990898]
[1737277027110,0.01032672,104320.0,104310.0,0.20404098]
[1737277027736,0.00089986,104320.0,104310.0,0.20404098]
[1737277030178,0.00089986,104320.0,104310.0,0.02381636]
[1737277030179,0.28040062,104320.0,104310.0,0.02381636]
[1737277031820,0.28040062,104320.0,104310.0,0.0004279]
[1737277032802,0.66220731,104320.0,104310.0,0.0004279]
[1737277033628,0.118868,104310.0,104300.0,0.00522571]
[1737277033930,0.396025,104310.0,104300.0,0.0057228]
[1737277034489,0.396025,104310.0,104300.0,0.00092469]
[1737277034672,0.39577098,104310.0,104300.0,0.00092469]
[1737277035081,0.47821374,104310.0,104300.0,0.00092469]
[1737277035290,0.98669739,104310.0,104300.0,0.00092469]
[1737277036339,1.13669739,104310.0,104300.0,0.00092469]
[1737277036901,1.03745658,104310.0,104300.0,0.00092469]
[1737277037505,1.05705187,104310.0,104300.0,0.00092469]
[1737277038263,1.15629268,104310.0,104300.0,0.00092469]
[1737277039757,1.16596441,104310.0,104300.0,0.00092469]
[1737277040698,1.06624822,104310.0,104300.0,0.00092469]
[1737277040907,0.88456465,104310.0,104300.0,0.00092469]
[1737277041170,0.98428084,104310.0,104300.0,0.00092469]
[1737277041382,0.88546471,104310.0,104300.0,0.00092469]
[1737277041916,0.9851809,104310.0,104300.0,0.00092469]
[1737277042117,0.78959671,104310.0,104300.0,0.00092469]
[1737277042253,0.97456591,104310.0,104300.0,0.00092469]
[1737277043391,0.59320317,104310.0,104300.0,0.00092469]
[1737277043944,0.242541,104310.0,104300.0,0.00092469]
[1737277044502,0.242541,104310.0,104300.0,0.01651746]
[1737277044701,0.392541,104310.0,104300.0,0.01651746]
[1737277044932,0.392541,104310.0,104300.0,0.02431439]
[1737277045490,0.20316708,104310.0,104300.0,0.02431439]
[1737277047343,0.90145447,104330.0,104310.0,0.25028381]
[1737277047344,0.51913738,104330.0,104310.0,0.25028381]
[1737277047737,0.51913738,104330.0,104320.0,0.61262581]
[1737277047938,0.51913738,104330.0,104320.0,0.58534538]
[1737277048548,0.51913738,104330.0,104320.0,0.48534538]
[1737277048954,0.51613738,104330.0,104320.0,0.50814836]
[1737277049165,0.51613738,104330.0,104320.0,0.45062836]
[1737277049578,0.53913738,104330.0,104320.0,0.45062836]
[1737277049770,0.023,104330.0,104320.0,0.96346458]
[1737277049991,0.023,104330.0,104320.0,0.95625437]
[1737277050509,0.023,104330.0,104320.0,0.52936104]
[1737277051511,0.023,104330.0,104320.0,0.44341815]
[1737277052712,0.023,104330.0,104320.0,0.21097539]
[1737277053325,0.02390006,104330.0,104320.0,0.36097539]
[1737277053961,0.02390006,104330.0,104320.0,0.44341815]
[1737277054155,0.02390006,104330.0,104320.0,0.44641566]
[1737277054624,0.02390006,104330.0,104320.0,0.43682011]
[1737277055183,0.02390006,104330.0,104320.0,0.35409354]
[1737277055350,0.02390006,104330.0,104320.0,0.35437735]
[1737277056324,0.02390006,104330.0,104320.0,0.00899473]
[1737277057102,0.02390006,104330.0,104320.0,0.10185522]
[1737277057733,0.02390006,104330.0,104320.0,0.095858]
[1737277060407,0.03034006,104330.0,104320.0,0.095858]
[1737277060809,0.03987043,104330.0,104320.0,0.095858]
[1737277061255,0.03343043,104330.0,104320.0,0.095858]
[1737277061501,0.05227035,104330.0,104320.0,0.095858]
[1737277063370,0.03032186,104330.0,104320.0,0.095858]
[1737277063569,0.01043043,104330.0,104320.0,0.095858]
[1737277063779,0.00090006,104330.0,104320.0,0.42782538]
[1737277063974,0.00090006,104330.0,104320.0,0.34509881]
[1737277064181,0.02390006,104330.0,104320.0,0.245858]
[1737277064516,0.02390006,104330.0,104320.0,0.25485212]
[1737277064702,0.02390006,104330.0,104320.0,0.4368195]
[1737277064847,0.02390006,104330.0,104320.0,0.437248]
[1737277067863,0.02390006,104330.0,104320.0,0.35480524]
[1737277069401,0.02390006,104330.0,104320.0,0.44684355]
[1737277069752,0.00090006,104330.0,104320.0,0.44684355]
[1737277071152,0.00090006,104330.0,104320.0,0.36411698]
[1737277071730,0.00090006,104330.0,104320.0,0.26487617]
[1737277073071,0.00090006,104330.0,104320.0,0.34731893]
[1737277073286,0.00090006,104330.0,104320.0,0.44684355]
[1737277075118,0.00090006,104330.0,104320.0,0.36440079]
[1737277076247,0.00090006,104330.0,104320.0,0.44684355]
[1737277078272,0.00090006,104330.0,104320.0,0.44900066]
[1737277079008,0.00090006,104330.0,104320.0,0.44400066]
[1737277079409,0.00090006,104330.0,104320.0,0.43684355]
[1737277080620,0.00090006,104330.0,104320.0,0.44400066]
[1737277081399,0.10390006,104330.0,104320.0,0.3615579]
[1737277082925,0.10390006,104330.0,104320.0,0.35440079]
[1737277088339,0.10390006,104330.0,104320.0,0.25487617]
[1737277090228,0.10390006,104330.0,104320.0,0.35440079]
[1737277090440,0.10390006,104330.0,104320.0,0.43684355]
[1737277091005,0.10390006,104330.0,104320.0,0.35440079]
[1737277091210,0.10390006,104330.0,104320.0,0.25487617]
[1737277092352,0.10390006,104330.0,104320.0,0.35440079]
[1737277093574,0.15240006,104330.0,104320.0,0.35440079]
[1737277094058,0.15240006,104330.0,104320.0,0.43684355]
[1737277094416,0.10390006,104330.0,104320.0,0.43684355]
[1737277095191,0.10390006,104330.0,104320.0,0.35411698]
[1737277095583,0.10390006,104330.0,104320.0,0.25487617]
[1737277095804,0.10390006,104330.0,104320.0,0.46913426]
[1737277096178,0.15240006,104330.0,104320.0,0.31913426]
[1737277096750,0.15240006,104330.0,104320.0,0.10487617]
[1737277097083,0.15240006,104330.0,104320.0,0.09528062]
[1737277097290,0.15345157,104330.0,104320.0,0.09528062]
[1737277097920,0.15240006,104330.0,104320.0,0.09528062]
[1737277098137,0.15345157,104330.0,104320.0,0.09528062]
[1737277098715,0.16121746,104330.0,104320.0,0.09528062]
[1737277098920,0.16016595,104330.0,104320.0,0.09528062]
[1737277099358,0.16016595,104330.0,104320.0,0.10487409]
[1737277102319,0.16121746,104330.0,104320.0,0.10487409]
[1737277104418,0.16121746,104330.0,104320.0,0.09528062]
[1737277105544,0.18027305,104330.0,104320.0,0.09528062]
[1737277107291,0.17922154,104330.0,104320.0,0.09528062]
[1737277108430,0.18027305,104330.0,104320.0,0.09528062]
[1737277108543,0.17984373,104330.0,104320.0,0.09528062]
[1737277109639,0.17984373,104330.0,104320.0,0.10487379]
[1737277111175,0.17984373,104330.0,104320.0,0.25487379]
[1737277111332,0.12897074,104330.0,104320.0,0.28684117]
[1737277111527,0.08047074,104330.0,104320.0,0.43684117]
[1737277111966,0.00047074,104330.0,104320.0,0.43684117]
[1737277112148,0.02347074,104330.0,104320.0,0.43684117]
[1737277112347,0.02347074,104330.0,104320.0,0.6481013]
[1737277112572,0.00047074,104330.0,104320.0,0.73054406]
[1737277112773,7.4e-07,104330.0,104320.0,0.73054406]
[1737277112992,7.4e-07,104330.0,104320.0,0.6481013]
[1737277113526,7.4e-07,104330.0,104320.0,1.2214446]
[1737277114743,7.4e-07,104330.0,104320.0,1.00805675]
[1737277118016,7.4e-07,104330.0,104320.0,1.13955277]
[1737277119833,0.10410074,104330.0,104320.0,1.05711001]
[1737277120035,0.15040074,104330.0,104320.0,1.05711001]
[1737277120441,0.15040074,104330.0,104320.0,1.13955277]
[1737277121256,0.10410074,104330.0,104320.0,1.13955277]
[1737277121657,0.10410074,104330.0,104320.0,1.35481673]
[1737277123043,0.10410074,104330.0,104320.0,1.35453292]
[1737277123221,0.10410074,104330.0,104320.0,1.35481673]
[1737277123423,0.10410074,104330.0,104320.0,1.35453292]
[1737277123859,0.10410074,104330.0,104320.0,1.35481673]
[1737277124577,0.10410074,104330.0,104320.0,1.35453292]
[1737277124774,0.10410074,104330.0,104320.0,1.35481673]
[1737277124976,0.10410074,104330.0,104320.0,1.05677825]
[1737277125618,0.10410074,104330.0,104320.0,0.95753744]
[1737277126035,0.10410074,104330.0,104320.0,0.78528791]
[1737277126581,0.10410074,104330.0,104320.0,0.78828554]
[1737277126960,0.10410074,104330.0,104320.0,0.25487346]
[1737277127297,0.2774,104310.0,104300.0,0.12889011]
[1737277127524,0.127077,104300.0,104290.0,0.21140533]
[1737277127733,0.36861119,104280.0,104270.0,0.72254118]
[1737277127968,0.617852,104280.0,104270.0,0.72254118]
[1737277128191,0.467852,104280.0,104270.0,0.0004282]
[1737277128389,0.545952,104280.0,104270.0,0.0004282]
[1737277129147,0.80019383,104280.0,104270.0,0.0004282]
[1737277130447,0.80019383,104280.0,104260.0,0.28735581]
[1737277130656,0.00105151,104270.0,104260.0,0.28735581]
[1737277131449,0.09695551,104270.0,104260.0,0.28735581]
[1737277131912,0.09695548,104270.0,104260.0,0.09553981]
[1737277132311,0.47913346,104270.0,104260.0,0.09553981]
[1737277132541,0.47858195,104270.0,104260.0,0.09553981]
[1737277132865,0.60588884,104270.0,104260.0,0.09553981]
[1737277133081,0.79770284,104270.0,104250.0,0.4800062]
[1737277133278,0.00055151,104260.0,104250.0,0.2881722]
[1737277135311,0.08538053,104260.0,104250.0,0.2881722]
[1737277135612,0.08482902,104260.0,104250.0,0.51011301]
[1737277135791,0.29766374,104270.0,104260.0,0.24674932]
[1737277135994,0.29766374,104270.0,104260.0,0.42788138]
[1737277136194,0.29766374,104270.0,104260.0,0.34543862]
[1737277136398,0.29766374,104270.0,104260.0,0.245914]
[1737277136632,0.3801065,104270.0,104260.0,0.095914]
[1737277136855,0.5790635,104270.0,104260.0,0.095914]
[1737277137030,0.49662074,104270.0,104260.0,0.095914]
[1737277137337,0.49662074,104270.0,104260.0,0.09583443]
[1737277137511,0.19945697,104270.0,104260.0,0.09583443]
[1737277137676,0.20000848,104270.0,104260.0,0.09583443]
[1737277138128,0.09974078,104270.0,104260.0,0.09583443]
[1737277138518,0.19945697,104270.0,104260.0,0.09583443]
[1737277138730,0.09974078,104270.0,104260.0,0.09583443]
[1737277139212,0.19945697,104270.0,104260.0,0.09583443]
[1737277139381,0.23779897,104270.0,104260.0,0.09583443]
[1737277140514,0.13808278,104270.0,104260.0,0.09583443]
[1737277140919,0.23835048,104270.0,104250.0,0.3840862]
[1737277141191,0.00055151,104260.0,104250.0,0.2881742]
[1737277141519,0.03884197,104270.0,104260.0,0.095914]
[1737277142041,0.23779897,104270.0,104250.0,0.3840902]
[1737277142250,0.23779897,104270.0,104250.0,0.4800062]
[1737277142602,0.23779897,104270.0,104260.0,0.095914]
[1737277143681,0.35670397,104270.0,104250.0,0.4800052]
[1737277143889,0.00055151,104260.0,104250.0,0.2881712]
[1737277144379,0.03884197,104270.0,104260.0,0.095914]
[1737277144788,0.03884197,104270.0,104260.0,0.17835676]
[1737277144995,0.03884197,104270.0,104260.0,0.095914]
[1737277145498,0.03939348,104270.0,104260.0,0.095914]
[1737277146081,0.03974119,104270.0,104260.0,0.25795676]
[1737277146629,0.03974119,104270.0,104260.0,0.35748138]
[1737277146836,0.00139919,104270.0,104260.0,0.35748138]
[1737277147242,0.00139919,104270.0,104260.0,0.55248138]
[1737277147484,0.00139919,104270.0,104260.0,0.17853995]
[1737277147667,0.00139919,104270.0,104260.0,0.27445395]
[1737277148108,0.00139919,104270.0,104260.0,0.245914]
[1737277148463,0.00139919,104270.0,104260.0,0.240914]
[1737277149377,0.00139919,104270.0,104260.0,0.32335676]
[1737277150399,0.00139919,104270.0,104260.0,0.32635618]
[1737277151594,0.00139919,104270.0,104260.0,0.33235494]
[1737277152220,0.00139919,104270.0,104260.0,0.42687956]
[1737277153735,0.00139919,104270.0,104260.0,0.24519599]
[1737277154131,0.11020494,104300.0,104270.0,0.1246]
[1737277154341,0.08456141,104310.0,104300.0,0.245877]
[1737277154591,0.08456141,104310.0,104300.0,0.42784438]
[1737277155928,0.08456141,104310.0,104300.0,0.43384314]
[1737277156142,0.08456141,104310.0,104300.0,0.42884314]
[1737277156516,0.00802483,104320.0,104300.0,0.33796614]
[1737277156751,7.4e-07,104330.0,104310.0,0.08244276]
[1737277157927,7.4e-07,104330.0,104310.0,0.08844152]
[1737277158130,7.4e-07,104330.0,104310.0,0.00599876]
[1737277159519,7.4e-07,104330.0,104310.0,0.08844152]
[1737277159719,0.13794936,104340.0,104310.0,0.08844152]
[1737277159924,0.24510786,104340.0,104310.0,0.08844152]
[1737277160654,0.24510786,104340.0,104330.0,0.08244276]
[1737277160655,0.04615086,104340.0,104330.0,0.08244276]
[1737277161075,0.03823317,104340.0,104330.0,0.08272657]
[1737277161203,0.09971619,104360.0,104330.0,0.08272657]
[1737277161406,0.19910706,104360.0,104330.0,0.08872533]
[1737277161605,0.23741706,104360.0,104330.0,0.08844152]
[1737277162027,0.14577379,104360.0,104330.0,0.08844152]
[1737277162400,0.24548998,104360.0,104340.0,0.08244276]
[1737277162646,0.24548998,104360.0,104330.0,0.08872533]
[1737277163534,0.24548998,104360.0,104330.0,0.00599876]
[1737277164215,0.198957,104350.0,104330.0,0.00599876]
[1737277164607,0.198957,104350.0,104330.0,0.08844152]
[1737277164833,0.198957,104350.0,104330.0,0.00599876]
[1737277165042,0.198957,104350.0,104320.0,0.36212533]
[1737277166232,0.09971619,104340.0,104320.0,0.27939876]
[1737277166435,0.198957,104340.0,104320.0,0.15599876]
[1737277166668,0.09924081,104340.0,104320.0,0.23844152]
[1737277167138,0.09924081,104340.0,104320.0,0.23244276]
[1737277167727,0.0784,104350.0,104330.0,0.08244276]
[1737277167930,0.277357,104350.0,104330.0,0.08244276]
[1737277168133,0.277357,104350.0,104320.0,0.23244276]
[1737277168972,0.277357,104350.0,104320.0,0.15]
[1737277169828,0.00089881,104340.0,104320.0,0.15]
[1737277173275,0.29584295,104350.0,104320.0,0.15]
[1737277175252,0.198957,104340.0,104310.0,0.00599876]
[1737277175547,0.198957,104340.0,104310.0,0.08844152]
[1737277175755,0.198957,104340.0,104310.0,0.00599876]
[1737277176185,0.198957,104340.0,104310.0,0.08244276]
[1737277176508,0.198957,104340.0,104310.0,0.23244276]
[1737277178085,0.198957,104340.0,104310.0,0.23844152]
[1737277178487,0.294799,104340.0,104310.0,0.00599876]
[1737277178815,0.09971619,104330.0,104310.0,0.08844152]
[1737277179018,0.198957,104330.0,104310.0,0.08844152]
[1737277180030,0.198957,104330.0,104310.0,0.09558914]
[1737277181344,0.09924081,104330.0,104310.0,0.09558914]
[1737277181774,0.09924081,104330.0,104310.0,0.09601704]
[1737277184642,0.10865399,104340.0,104310.0,0.09601704]
[1737277184956,0.2078948,104340.0,104310.0,0.09601704]
[1737277186743,0.10817861,104340.0,104320.0,0.08244276]
[1737277186947,0.10817861,104340.0,104320.0,0.16484276]
[1737277187539,0.00089859,104340.0,104330.0,0.23058357]
[1737277187736,0.00089859,104340.0,104330.0,0.46326738]
[1737277188243,0.00089859,104340.0,104330.0,0.46926614]
[1737277188763,0.00089859,104340.0,104330.0,0.47955558]
[1737277188981,0.00089859,104340.0,104330.0,0.62955558]
[1737277189177,0.00089859,104340.0,104330.0,1.09415558]
[1737277189387,0.00089859,104340.0,104330.0,1.19415558]
[1737277189593,0.08471147,104360.0,104350.0,0.36002657]
[1737277189820,0.08471147,104360.0,104350.0,0.45926738]
[1737277190023,0.00015006,104360.0,104350.0,0.45926738]
[1737277190414,0.00015006,104360.0,104350.0,0.36002657]
[1737277190619,0.00015006,104360.0,104350.0,0.35974276]
[1737277190839,0.00015006,104360.0,104350.0,0.36689038]
[1737277191040,0.00015006,104360.0,104350.0,0.37288914]
[1737277191898,0.00015006,104360.0,104350.0,0.37317295]
[1737277192349,0.00068849,104370.0,104350.0,0.37317295]
[1737277193310,0.0004278,104360.0,104350.0,0.37317295]
[1737277194180,0.0004278,104360.0,104350.0,0.37288914]
[1737277194463,0.0004278,104360.0,104350.0,0.37317295]
[1737277199128,0.0004278,104360.0,104350.0,0.09587295]
[1737277199330,0.0004278,104360.0,104350.0,0.01314638]
[1737277201941,0.0004278,104360.0,104350.0,0.00714762]
[1737277202917,0.3182068,104360.0,104350.0,0.00714762]
[1737277203078,0.5432068,104360.0,104350.0,0.00714762]
[1737277204293,0.7348528,104360.0,104330.0,0.00599876]
[1737277204529,0.7348528,104360.0,104330.0,0.00614882]
[1737277204965,0.81941421,104360.0,104330.0,0.00614882]
[1737277205171,1.01106721,104360.0,104330.0,0.00614882]
[1737277205365,0.09924081,104350.0,104330.0,0.00015006]
[1737277205570,0.09924081,104350.0,104330.0,0.00730326]
[1737277205728,0.38674081,104350.0,104330.0,0.00730326]
[1737277205932,0.39062,104350.0,104330.0,0.00730326]
[1737277206176,0.19555619,104340.0,104330.0,0.00730326]
[1737277206481,0.317797,104340.0,104330.0,0.00730326]
[1737277206678,0.392797,104340.0,104330.0,0.00730326]
[1737277207107,0.47523976,104340.0,104330.0,0.00730326]
[1737277207308,0.47523976,104340.0,104330.0,0.00015006]
[1737277208144,0.392797,104340.0,104330.0,0.00015006]
[1737277208664,0.29308081,104340.0,104330.0,0.00015006]
[1737277209110,0.75724875,104340.0,104330.0,0.00015006]
[1737277209506,0.77452218,104340.0,104330.0,0.00015006]
[1737277209726,0.57896599,104340.0,104330.0,0.00015006]
[1737277209925,0.48096599,104340.0,104330.0,0.00015006]
[1737277210380,0.38172518,104340.0,104330.0,0.00015006]
[1737277210585,0.38172518,104340.0,104330.0,0.08259282]
[1737277210909,0.38172518,104340.0,104330.0,0.00015006]
[1737277211334,0.09096141,104350.0,104330.0,0.00015006]
[1737277211550,0.09724466,104350.0,104330.0,0.00043387]
[1737277212148,0.09724466,104350.0,104330.0,0.23287663]
[1737277212149,0.09084466,104350.0,104330.0,0.23287663]
[1737277212312,0.00628325,104350.0,104330.0,0.27987663]
[1737277212536,0.08498921,104360.0,104330.0,0.27987663]
[1737277212738,0.18423002,104360.0,104330.0,0.27987663]